[Event "*** SCC Grand Prix: Titled Tuesday Blitz"]
[Site "Chess.com"]
[Date "2020.07.14"]
[Round "1"]
[White "Sychev_Klementy"]
[Black "SavelievAlexei"]
[Result "1-0"]
[WhiteElo "2743"]
[BlackElo "2389"]
[TimeControl "180+1"]
[EndTime "10:06:33 PDT"]
[Termination "Sychev_Klementy won by resignation"]

1. e4 {[%clk 0:02:58]} 1... c5 {[%clk 0:02:54]} 2. Nf3 {[%clk 0:02:56.8]} 2...
e6 {[%clk 0:02:44.2]} 3. g3 {[%clk 0:02:55]} 3... Nc6 {[%clk 0:02:43.2]} 4. Bg2
{[%clk 0:02:54.3]} 4... Nf6 {[%clk 0:02:43.5]} 5. Qe2 {[%clk 0:02:54.3]} 5... e5
{[%clk 0:02:42.7]} 6. O-O {[%clk 0:02:51.2]} 6... Be7 {[%clk 0:02:41.9]} 7. d3
{[%clk 0:02:43.6]} 7... h6 {[%clk 0:02:27.6]} 8. Na3 {[%clk 0:02:28.5]} 8... O-O
{[%clk 0:02:14.2]} 9. Nc4 {[%clk 0:02:21.1]} 9... d6 {[%clk 0:02:14.6]} 10. c3
{[%clk 0:02:20]} 10... Be6 {[%clk 0:02:12]} 11. Nfd2 {[%clk 0:02:19.5]} 11... b5
{[%clk 0:01:43.6]} 12. Ne3 {[%clk 0:02:18.9]} 12... d5 {[%clk 0:01:44]} 13. f4
{[%clk 0:02:03]} 13... d4 {[%clk 0:01:36.4]} 14. Nf5 {[%clk 0:02:01.6]} 14...
exf4 {[%clk 0:01:07.4]} 15. Nxe7+ {[%clk 0:01:47.4]} 15... Qxe7 {[%clk
0:01:02.9]} 16. gxf4 {[%clk 0:01:47.7]} 16... Bg4 {[%clk 0:01:02.9]} 17. Qf2
{[%clk 0:01:26.8]} 17... Rad8 {[%clk 0:01:02.7]} 18. e5 {[%clk 0:01:18.8]} 18...
Nd5 {[%clk 0:01:02.3]} 19. Ne4 {[%clk 0:01:18.7]} 19... f5 {[%clk 0:00:11.6]}
20. Nd6 {[%clk 0:01:17.8]} 20... Ne3 {[%clk 0:00:11.7]} 21. Bxe3 {[%clk
0:01:12.3]} 21... dxe3 {[%clk 0:00:11.7]} 22. Qg3 {[%clk 0:01:12.9]} 22... Nb8
{[%clk 0:00:04.6]} 23. Rae1 {[%clk 0:01:12.6]} 23... Nd7 {[%clk 0:00:04.2]} 24.
Rxe3 {[%clk 0:01:11.7]} 24... Nb6 {[%clk 0:00:04.6]} 25. Kh1 {[%clk 0:01:09.5]}
25... Qe6 {[%clk 0:00:04.9]} 26. Rg1 {[%clk 0:01:01.4]} 26... g5 {[%clk
0:00:04.3]} 27. Ree1 {[%clk 0:00:51.8]} 27... Nd5 {[%clk 0:00:03.7]} 28. fxg5
{[%clk 0:00:49.2]} 28... f4 {[%clk 0:00:03.3]} 29. Qxg4 {[%clk 0:00:45]} 29...
Qxg4 {[%clk 0:00:03]} 30. Bxd5+ {[%clk 0:00:45.1]} 1-0

[Event "*** SCC Grand Prix: Titled Tuesday Blitz"]
[Site "Chess.com"]
[Date "2020.07.14"]
[Round "1"]
[White "Gabix_94"]
[Black "WPWPWP-2015"]
[Result "1-0"]
[WhiteElo "2907"]
[BlackElo "2433"]
[TimeControl "180+1"]
[EndTime "10:06:34 PDT"]
[Termination "Gabix_94 won on time"]

1. d4 {[%clk 0:03:00.9]} 1... Nf6 {[%clk 0:02:58.4]} 2. Nf3 {[%clk 0:03:00.4]}
2... d5 {[%clk 0:02:55.1]} 3. c4 {[%clk 0:02:59.7]} 3... c6 {[%clk 0:02:54.9]}
4. Nc3 {[%clk 0:02:59.2]} 4... e6 {[%clk 0:02:54.8]} 5. Qd3 {[%clk 0:02:53.3]}
5... Nbd7 {[%clk 0:02:47.6]} 6. g3 {[%clk 0:02:47.3]} 6... Bb4 {[%clk
0:02:44.5]} 7. Bg2 {[%clk 0:02:47.2]} 7... Ne4 {[%clk 0:02:39.5]} 8. O-O {[%clk
0:02:46.7]} 8... Bxc3 {[%clk 0:02:37.1]} 9. bxc3 {[%clk 0:02:46.4]} 9... O-O
{[%clk 0:02:36.5]} 10. Nd2 {[%clk 0:02:41.3]} 10... f5 {[%clk 0:02:35.4]} 11. f3
{[%clk 0:02:38.2]} 11... Nxd2 {[%clk 0:02:27.2]} 12. Bxd2 {[%clk 0:02:39.1]}
12... Nf6 {[%clk 0:02:25.2]} 13. e4 {[%clk 0:02:33.2]} 13... Bd7 {[%clk
0:01:59.2]} 14. cxd5 {[%clk 0:02:21.2]} 14... cxd5 {[%clk 0:01:48.4]} 15. e5
{[%clk 0:02:21]} 15... Ne8 {[%clk 0:01:46.6]} 16. a4 {[%clk 0:02:17.2]} 16...
Qc7 {[%clk 0:01:39.3]} 17. f4 {[%clk 0:02:16.2]} 17... Rc8 {[%clk 0:01:37.3]}
18. Rfb1 {[%clk 0:02:15.3]} 18... b6 {[%clk 0:01:34.8]} 19. h3 {[%clk 0:02:11]}
19... g6 {[%clk 0:01:29]} 20. Kh2 {[%clk 0:02:10.4]} 20... Ng7 {[%clk
0:01:13.8]} 21. Bf3 {[%clk 0:02:09.8]} 21... Qc4 {[%clk 0:01:04.3]} 22. Be2
{[%clk 0:02:04.2]} 22... Qc7 {[%clk 0:00:53.1]} 23. Qc2 {[%clk 0:01:56.8]} 23...
Bc6 {[%clk 0:00:50.6]} 24. Qa2 {[%clk 0:01:53.1]} 24... Qd7 {[%clk 0:00:47.7]}
25. Bd3 {[%clk 0:01:52.1]} 25... Rc7 {[%clk 0:00:46.1]} 26. a5 {[%clk
0:01:49.6]} 26... b5 {[%clk 0:00:45.5]} 27. a6 {[%clk 0:01:46.6]} 27... Rb8
{[%clk 0:00:43.7]} 28. Bc1 {[%clk 0:01:46.7]} 28... Rb6 {[%clk 0:00:34.1]} 29.
Qe2 {[%clk 0:01:40.7]} 29... Qc8 {[%clk 0:00:19.5]} 30. Qa2 {[%clk 0:01:33.8]}
30... Bd7 {[%clk 0:00:14.3]} 31. Bd2 {[%clk 0:01:31]} 31... Rc4 {[%clk
0:00:08.4]} 32. Rb3 {[%clk 0:01:30.5]} 32... Bc6 {[%clk 0:00:07.4]} 33. Qb2
{[%clk 0:01:23.3]} 33... Rxa6 {[%clk 0:00:03.7]} 34. Rxa6 {[%clk 0:01:18]} 34...
Qxa6 {[%clk 0:00:04.6]} 35. Bxc4 {[%clk 0:01:18.5]} 35... dxc4 {[%clk
0:00:04.4]} 36. Ra3 {[%clk 0:01:19]} 36... Qb6 {[%clk 0:00:02.5]} 37. Be3 {[%clk
0:01:18.7]} 37... a6 {[%clk 0:00:02.2]} 38. d5 {[%clk 0:01:10.7]} 38... Qxe3
{[%clk 0:00:01.5]} 39. dxc6 {[%clk 0:01:11.6]} 39... Ne8 {[%clk 0:00:01.4]} 40.
Rxa6 {[%clk 0:01:08.8]} 40... Qc5 {[%clk 0:00:01.4]} 41. Qd2 {[%clk 0:01:07.2]}
1-0

[Event "*** SCC Grand Prix: Titled Tuesday Blitz"]
[Site "Chess.com"]
[Date "2020.07.14"]
[Round "1"]
[White "Antipov_Mikhail_Al"]
[Black "Agnes66678"]
[Result "1-0"]
[WhiteElo "2857"]
[BlackElo "2424"]
[TimeControl "180+1"]
[EndTime "10:06:36 PDT"]
[Termination "Antipov_Mikhail_Al won by resignation"]

1. e4 {[%clk 0:03:00.9]} 1... e5 {[%clk 0:02:48.8]} 2. Nf3 {[%clk 0:02:59.5]}
2... Nf6 {[%clk 0:02:48.5]} 3. d4 {[%clk 0:02:58.7]} 3... Nxe4 {[%clk
0:02:45.6]} 4. Bd3 {[%clk 0:02:58.6]} 4... d5 {[%clk 0:02:45.1]} 5. Nxe5 {[%clk
0:02:57.9]} 5... Bd6 {[%clk 0:02:44.3]} 6. Nc3 {[%clk 0:02:40.2]} 6... Nxc3
{[%clk 0:02:37.9]} 7. bxc3 {[%clk 0:02:39.7]} 7... O-O {[%clk 0:02:38.8]} 8. O-O
{[%clk 0:02:38.6]} 8... Nd7 {[%clk 0:02:37.7]} 9. Nxd7 {[%clk 0:02:32.9]} 9...
Bxd7 {[%clk 0:02:36.8]} 10. Qh5 {[%clk 0:02:30.6]} 10... g6 {[%clk 0:02:34.6]}
11. Qxd5 {[%clk 0:02:28]} 11... Bc6 {[%clk 0:02:22.6]} 12. Qg5 {[%clk
0:02:23.3]} 12... Be7 {[%clk 0:02:20.8]} 13. Qg3 {[%clk 0:02:21.9]} 13... Bf6
{[%clk 0:02:20.1]} 14. Bf4 {[%clk 0:02:17.1]} 14... Rc8 {[%clk 0:02:17.8]} 15.
Rae1 {[%clk 0:02:10.2]} 15... Qd5 {[%clk 0:02:11.2]} 16. a3 {[%clk 0:01:57.2]}
16... Qa5 {[%clk 0:02:09.3]} 17. Bd2 {[%clk 0:01:38.5]} 17... Qxa3 {[%clk
0:02:08.2]} 18. Ra1 {[%clk 0:01:36]} 18... Qe7 {[%clk 0:02:04.3]} 19. Rfe1
{[%clk 0:01:33.2]} 19... Qd7 {[%clk 0:02:03.6]} 20. Qf4 {[%clk 0:01:27.4]} 20...
Bg7 {[%clk 0:02:02.6]} 21. Rxa7 {[%clk 0:01:26.7]} 21... Ra8 {[%clk 0:01:57.7]}
22. Rxa8 {[%clk 0:01:23.6]} 22... Rxa8 {[%clk 0:01:58.6]} 23. h4 {[%clk
0:01:14.9]} 23... h5 {[%clk 0:01:57.2]} 24. Bc4 {[%clk 0:01:07.3]} 24... Rf8
{[%clk 0:01:53.5]} 25. Qg5 {[%clk 0:00:56.4]} 25... b5 {[%clk 0:01:43.3]} 26.
Bb3 {[%clk 0:00:50.7]} 26... Qd6 {[%clk 0:01:41.6]} 27. Bf4 {[%clk 0:00:48.3]}
27... Qf6 {[%clk 0:01:34.7]} 28. Bxc7 {[%clk 0:00:44.7]} 28... Rc8 {[%clk
0:01:33.1]} 29. Re7 {[%clk 0:00:34.7]} 29... Qxg5 {[%clk 0:01:26.9]} 30. hxg5
{[%clk 0:00:35.6]} 30... Be8 {[%clk 0:01:25]} 31. Ba5 {[%clk 0:00:33.9]} 31...
Bf8 {[%clk 0:01:24]} 32. Ra7 {[%clk 0:00:33]} 32... Bd6 {[%clk 0:01:18.4]} 33.
g3 {[%clk 0:00:26.7]} 33... Ba3 {[%clk 0:01:16.5]} 34. d5 {[%clk 0:00:20.6]}
34... Kf8 {[%clk 0:01:10.8]} 35. Bb4+ {[%clk 0:00:18]} 35... Bxb4 {[%clk
0:01:10.8]} 36. cxb4 {[%clk 0:00:18.9]} 36... Rd8 {[%clk 0:01:08.4]} 37. Kg2
{[%clk 0:00:15.6]} 37... Bd7 {[%clk 0:01:08.5]} 38. Kf3 {[%clk 0:00:15.8]} 38...
Ke7 {[%clk 0:01:08.4]} 39. Ke4 {[%clk 0:00:14.4]} 39... Kd6 {[%clk 0:01:06.6]}
40. Ra6+ {[%clk 0:00:14.5]} 40... Kc7 {[%clk 0:01:06.7]} 41. Rf6 {[%clk
0:00:13.7]} 41... Re8+ {[%clk 0:01:04.3]} 42. Kd4 {[%clk 0:00:13.9]} 42... Re7
{[%clk 0:01:05.2]} 43. d6+ {[%clk 0:00:13.9]} 43... Kd8 {[%clk 0:01:05.3]} 44.
dxe7+ {[%clk 0:00:14.8]} 44... Kxe7 {[%clk 0:01:06.2]} 45. Bxf7 {[%clk
0:00:15.3]} 1-0

[Event "*** SCC Grand Prix: Titled Tuesday Blitz"]
[Site "Chess.com"]
[Date "2020.07.14"]
[Round "1"]
[White "Duong57"]
[Black "viktorskliarov"]
[Result "0-1"]
[WhiteElo "2242"]
[BlackElo "2568"]
[TimeControl "180+1"]
[EndTime "10:06:36 PDT"]
[Termination "viktorskliarov won by resignation"]

1. d4 {[%clk 0:03:00.9]} 1... Nf6 {[%clk 0:02:50.4]} 2. c4 {[%clk 0:03:00.6]}
2... e6 {[%clk 0:02:45.2]} 3. Nc3 {[%clk 0:00:46.3]} 3... Bb4 {[%clk 0:02:43.7]}
4. Qc2 {[%clk 0:00:45]} 4... c5 {[%clk 0:02:43.3]} 5. dxc5 {[%clk 0:00:44]} 5...
Na6 {[%clk 0:02:43.3]} 6. a3 {[%clk 0:00:42.6]} 6... Bxc3+ {[%clk 0:02:43]} 7.
Qxc3 {[%clk 0:00:43.5]} 7... Nxc5 {[%clk 0:02:43.2]} 8. b4 {[%clk 0:00:44.2]}
8... Nce4 {[%clk 0:02:42.2]} 9. Qc2 {[%clk 0:00:44.8]} 9... d5 {[%clk
0:02:41.7]} 10. f3 {[%clk 0:00:45.3]} 10... Nd6 {[%clk 0:02:39.3]} 11. c5 {[%clk
0:00:45.9]} 11... Nf5 {[%clk 0:02:32.8]} 12. e3 {[%clk 0:00:46.2]} 12... O-O
{[%clk 0:02:30.7]} 13. Bd3 {[%clk 0:00:46.3]} 13... d4 {[%clk 0:02:19.4]} 14. e4
{[%clk 0:00:45.3]} 14... Ne3 {[%clk 0:02:17.5]} 15. Bxe3 {[%clk 0:00:45.5]}
15... dxe3 {[%clk 0:02:17.7]} 16. Ne2 {[%clk 0:00:46.2]} 16... e5 {[%clk
0:02:15.6]} 17. O-O {[%clk 0:00:46.2]} 17... Nh5 {[%clk 0:02:15.8]} 18. Rfd1
{[%clk 0:00:38.3]} 18... Qg5 {[%clk 0:02:12.3]} 19. Bc4 {[%clk 0:00:31.9]} 19...
Bh3 {[%clk 0:01:39.8]} 20. Ng3 {[%clk 0:00:30.8]} 20... Nxg3 {[%clk 0:01:35.9]}
21. hxg3 {[%clk 0:00:31]} 21... Qxg3 {[%clk 0:01:36]} 22. Re1 {[%clk 0:00:31.5]}
22... Qg5 {[%clk 0:01:25.1]} 23. Kh2 {[%clk 0:00:28]} 23... Rad8 {[%clk
0:01:09.3]} 24. Rad1 {[%clk 0:00:20.9]} 24... Be6 {[%clk 0:01:02.6]} 25. Rxd8
{[%clk 0:00:19.1]} 25... Rxd8 {[%clk 0:01:00.8]} 26. Bxe6 {[%clk 0:00:18.8]}
26... Rd2 {[%clk 0:00:57.6]} 27. Bxf7+ {[%clk 0:00:18.2]} 27... Kf8 {[%clk
0:00:56.3]} 28. Re2 {[%clk 0:00:17.2]} 28... Qh4+ {[%clk 0:00:45.5]} 29. Kg1
{[%clk 0:00:13.6]} 29... Rxc2 {[%clk 0:00:45.5]} 30. Rxc2 {[%clk 0:00:13.7]}
30... Qe1+ {[%clk 0:00:45.1]} 31. Kh2 {[%clk 0:00:13.8]} 31... Kxf7 {[%clk
0:00:45.8]} 32. b5 {[%clk 0:00:13.1]} 32... Qd1 {[%clk 0:00:42.9]} 0-1

[Event "*** SCC Grand Prix: Titled Tuesday Blitz"]
[Site "Chess.com"]
[Date "2020.07.14"]
[Round "1"]
[White "Sjakkerntobi"]
[Black "Dinamo81"]
[Result "1-0"]
[WhiteElo "2352"]
[BlackElo "2637"]
[TimeControl "180+1"]
[EndTime "10:06:39 PDT"]
[Termination "Sjakkerntobi won on time"]

1. e4 {[%clk 0:03:00.9]} 1... e5 {[%clk 0:02:58.9]} 2. Nf3 {[%clk 0:03:01.2]}
2... d6 {[%clk 0:02:57.3]} 3. d4 {[%clk 0:03:00.7]} 3... exd4 {[%clk 0:02:58.2]}
4. Nxd4 {[%clk 0:03:00.9]} 4... Nf6 {[%clk 0:02:57.6]} 5. Nc3 {[%clk 0:03:00.8]}
5... Be7 {[%clk 0:02:57.7]} 6. Bc4 {[%clk 0:03:01.2]} 6... O-O {[%clk
0:02:56.7]} 7. Be3 {[%clk 0:03:01.6]} 7... c6 {[%clk 0:02:49.1]} 8. O-O {[%clk
0:03:00]} 8... Re8 {[%clk 0:02:26.9]} 9. Bb3 {[%clk 0:02:49.2]} 9... a5 {[%clk
0:02:18.8]} 10. a4 {[%clk 0:02:47.8]} 10... Na6 {[%clk 0:02:17]} 11. f3 {[%clk
0:02:40.9]} 11... d5 {[%clk 0:02:02.8]} 12. exd5 {[%clk 0:02:36.5]} 12... cxd5
{[%clk 0:01:13.2]} 13. Bf2 {[%clk 0:02:27.2]} 13... Nc5 {[%clk 0:01:04.5]} 14.
Ba2 {[%clk 0:02:24.6]} 14... Bd6 {[%clk 0:00:35.6]} 15. Ndb5 {[%clk 0:02:11.7]}
15... Be6 {[%clk 0:00:23.2]} 16. Nxd6 {[%clk 0:02:02]} 16... Qxd6 {[%clk
0:00:24.1]} 17. Nb5 {[%clk 0:01:49.8]} 17... Qe7 {[%clk 0:00:23.4]} 18. c3
{[%clk 0:01:49]} 18... Rad8 {[%clk 0:00:21.5]} 19. Nd4 {[%clk 0:01:48]} 19...
Qc7 {[%clk 0:00:20.3]} 20. Re1 {[%clk 0:01:38.1]} 20... b6 {[%clk 0:00:20.2]}
21. Nxe6 {[%clk 0:01:23.9]} 21... fxe6 {[%clk 0:00:19.4]} 22. Bg3 {[%clk
0:01:16.3]} 22... Qc6 {[%clk 0:00:18.2]} 23. Be5 {[%clk 0:01:14.4]} 23... Rf8
{[%clk 0:00:14.4]} 24. Qd4 {[%clk 0:01:09]} 24... Rf7 {[%clk 0:00:13.3]} 25. c4
{[%clk 0:01:08.5]} 25... Qc8 {[%clk 0:00:08.3]} 26. cxd5 {[%clk 0:01:05.1]}
26... Nxd5 {[%clk 0:00:09.2]} 27. Rad1 {[%clk 0:01:02.1]} 27... Rdd7 {[%clk
0:00:07.1]} 28. Qg4 {[%clk 0:00:59.2]} 28... Qc6 {[%clk 0:00:03.7]} 29. Bd4
{[%clk 0:00:41.6]} 29... Nxa4 {[%clk 0:00:02.9]} 30. Qxe6 {[%clk 0:00:39.4]}
30... Qxe6 {[%clk 0:00:02.5]} 31. Rxe6 {[%clk 0:00:40.3]} 1-0

[Event "*** SCC Grand Prix: Titled Tuesday Blitz"]
[Site "Chess.com"]
[Date "2020.07.14"]
[Round "1"]
[White "SanQui14"]
[Black "Kildepiotr"]
[Result "0-1"]
[WhiteElo "2282"]
[BlackElo "2590"]
[TimeControl "180+1"]
[EndTime "10:06:39 PDT"]
[Termination "Kildepiotr won by checkmate"]

1. d4 {[%clk 0:03:00.9]} 1... c5 {[%clk 0:02:57.4]} 2. d5 {[%clk 0:02:59.6]}
2... e5 {[%clk 0:02:56.2]} 3. e4 {[%clk 0:02:57.3]} 3... d6 {[%clk 0:02:56.5]}
4. Nc3 {[%clk 0:02:56.3]} 4... Be7 {[%clk 0:02:56.3]} 5. Nf3 {[%clk 0:02:55.3]}
5... a6 {[%clk 0:02:56]} 6. a4 {[%clk 0:02:55.1]} 6... Bg4 {[%clk 0:02:55.5]} 7.
Be2 {[%clk 0:02:54.9]} 7... Bxf3 {[%clk 0:02:55.4]} 8. Bxf3 {[%clk 0:02:54.7]}
8... Bg5 {[%clk 0:02:56]} 9. O-O {[%clk 0:02:53.7]} 9... Bxc1 {[%clk 0:02:53.7]}
10. Qxc1 {[%clk 0:02:52.4]} 10... Ne7 {[%clk 0:02:54.6]} 11. a5 {[%clk 0:02:49]}
11... Nd7 {[%clk 0:02:53.4]} 12. Qd2 {[%clk 0:02:49.4]} 12... O-O {[%clk
0:02:52.5]} 13. Rfb1 {[%clk 0:02:49.3]} 13... f5 {[%clk 0:02:51.4]} 14. b4
{[%clk 0:02:49.1]} 14... cxb4 {[%clk 0:02:50.4]} 15. Rxb4 {[%clk 0:02:48.2]}
15... Nc5 {[%clk 0:02:50.7]} 16. Rb6 {[%clk 0:02:41.6]} 16... Rc8 {[%clk
0:02:42.8]} 17. exf5 {[%clk 0:02:40]} 17... Nxf5 {[%clk 0:02:42]} 18. Ne4 {[%clk
0:02:36.1]} 18... Nd4 {[%clk 0:02:34.3]} 19. Nxd6 {[%clk 0:01:25]} 19... Rxf3
{[%clk 0:02:11.4]} 20. Nxc8 {[%clk 0:01:21.2]} 20... Qxc8 {[%clk 0:02:10.2]} 21.
Re1 {[%clk 0:00:49.5]} 21... Qf5 {[%clk 0:02:01.4]} 22. c3 {[%clk 0:00:44.7]}
22... Rd3 {[%clk 0:01:54.9]} 23. Qc1 {[%clk 0:00:28.1]} 23... Nb5 {[%clk
0:01:32.9]} 24. c4 {[%clk 0:00:24.5]} 24... Nd4 {[%clk 0:01:30.7]} 25. Rb2
{[%clk 0:00:16.9]} 25... h6 {[%clk 0:00:47.1]} 26. Qb1 {[%clk 0:00:16.5]} 26...
Qg4 {[%clk 0:00:39.1]} 27. Kf1 {[%clk 0:00:15.6]} 27... Rf3 {[%clk 0:00:33.1]}
28. h3 {[%clk 0:00:13.6]} 28... Qh5 {[%clk 0:00:29]} 29. gxf3 {[%clk 0:00:13.5]}
29... Qxh3+ {[%clk 0:00:28.1]} 30. Kg1 {[%clk 0:00:10.6]} 30... Nxf3# {[%clk
0:00:28.2]} 0-1

[Event "*** SCC Grand Prix: Titled Tuesday Blitz"]
[Site "Chess.com"]
[Date "2020.07.14"]
[Round "1"]
[White "Warre"]
[Black "Duhless"]
[Result "0-1"]
[WhiteElo "2449"]
[BlackElo "3031"]
[TimeControl "180+1"]
[EndTime "10:06:40 PDT"]
[Termination "Duhless won by resignation"]

1. d4 {[%clk 0:03:00.4]} 1... Nf6 {[%clk 0:02:55.7]} 2. c4 {[%clk 0:02:59.7]}
2... g6 {[%clk 0:02:52.9]} 3. Nc3 {[%clk 0:02:59.3]} 3... d5 {[%clk 0:02:51.7]}
4. cxd5 {[%clk 0:02:59.6]} 4... Nxd5 {[%clk 0:02:52.6]} 5. e4 {[%clk 0:02:59.2]}
5... Nxc3 {[%clk 0:02:53.2]} 6. bxc3 {[%clk 0:03:00.1]} 6... Bg7 {[%clk
0:02:53.8]} 7. Nf3 {[%clk 0:02:51.8]} 7... c5 {[%clk 0:02:53.3]} 8. Be3 {[%clk
0:02:52.1]} 8... Qa5 {[%clk 0:02:44.5]} 9. Qd2 {[%clk 0:02:52]} 9... Nd7 {[%clk
0:02:44]} 10. Be2 {[%clk 0:02:42.8]} 10... Nf6 {[%clk 0:02:32.6]} 11. Bd3 {[%clk
0:02:27.9]} 11... O-O {[%clk 0:02:24]} 12. O-O {[%clk 0:02:26.8]} 12... Rd8
{[%clk 0:02:23.2]} 13. Rac1 {[%clk 0:02:09.4]} 13... Bg4 {[%clk 0:02:17.8]} 14.
Qe2 {[%clk 0:01:50.3]} 14... e5 {[%clk 0:02:02.1]} 15. d5 {[%clk 0:01:32.4]}
15... c4 {[%clk 0:02:01.9]} 16. Bb1 {[%clk 0:01:29.9]} 16... Rac8 {[%clk
0:02:00.6]} 17. h3 {[%clk 0:01:26.3]} 17... Bxf3 {[%clk 0:02:00.4]} 18. Qxf3
{[%clk 0:01:27.2]} 18... Ne8 {[%clk 0:02:01]} 19. Qg3 {[%clk 0:01:16.8]} 19...
Nf6 {[%clk 0:01:43.4]} 20. Qf3 {[%clk 0:00:54.6]} 20... Qc7 {[%clk 0:01:37]} 21.
Qe2 {[%clk 0:00:52]} 21... Ne8 {[%clk 0:01:34.4]} 22. h4 {[%clk 0:00:43]} 22...
h5 {[%clk 0:01:29.7]} 23. g3 {[%clk 0:00:38.4]} 23... Nf6 {[%clk 0:01:19.4]} 24.
f3 {[%clk 0:00:35.6]} 24... b6 {[%clk 0:01:17.8]} 25. Bg5 {[%clk 0:00:33.5]}
25... Rd7 {[%clk 0:01:06.8]} 26. f4 {[%clk 0:00:27.9]} 26... exf4 {[%clk
0:00:55.7]} 27. Bxf4 {[%clk 0:00:27.9]} 27... Qc5+ {[%clk 0:00:54.9]} 28. Be3
{[%clk 0:00:27.7]} 28... Qe7 {[%clk 0:00:54.5]} 29. Bd4 {[%clk 0:00:19.9]} 29...
Nxd5 {[%clk 0:00:48.2]} 30. Bxg7 {[%clk 0:00:18.1]} 30... Kxg7 {[%clk
0:00:49.1]} 31. Rcd1 {[%clk 0:00:18.5]} 31... Rcd8 {[%clk 0:00:30.7]} 32. Qf2
{[%clk 0:00:17.7]} 32... Nxc3 {[%clk 0:00:28]} 0-1

[Event "*** SCC Grand Prix: Titled Tuesday Blitz"]
[Site "Chess.com"]
[Date "2020.07.14"]
[Round "1"]
[White "rpragchess"]
[Black "zajka-molotok"]
[Result "1-0"]
[WhiteElo "2807"]
[BlackElo "2408"]
[TimeControl "180+1"]
[EndTime "10:06:41 PDT"]
[Termination "rpragchess won on time"]

1. d4 {[%clk 0:03:00.9]} 1... d5 {[%clk 0:03:00.2]} 2. Bf4 {[%clk 0:03:01]} 2...
Nf6 {[%clk 0:02:58.2]} 3. e3 {[%clk 0:02:57.8]} 3... e6 {[%clk 0:02:58]} 4. Nf3
{[%clk 0:02:56.9]} 4... Bd6 {[%clk 0:02:57.9]} 5. Bg3 {[%clk 0:02:56.6]} 5...
O-O {[%clk 0:02:57.3]} 6. Nbd2 {[%clk 0:02:56.8]} 6... c5 {[%clk 0:02:53]} 7. c3
{[%clk 0:02:56.6]} 7... Qc7 {[%clk 0:02:51.9]} 8. dxc5 {[%clk 0:02:32.8]} 8...
Qxc5 {[%clk 0:02:47.1]} 9. Bd3 {[%clk 0:02:32.4]} 9... Nbd7 {[%clk 0:02:36.5]}
10. e4 {[%clk 0:02:27.9]} 10... e5 {[%clk 0:01:42]} 11. exd5 {[%clk 0:01:51]}
11... Qxd5 {[%clk 0:01:41.4]} 12. Nc4 {[%clk 0:01:36.6]} 12... Bc7 {[%clk
0:01:30.7]} 13. O-O {[%clk 0:01:23.1]} 13... Re8 {[%clk 0:01:14.8]} 14. Re1
{[%clk 0:01:19]} 14... b5 {[%clk 0:00:21.4]} 15. Ne3 {[%clk 0:01:08.7]} 15...
Qc6 {[%clk 0:00:20.8]} 16. c4 {[%clk 0:00:49.4]} 16... b4 {[%clk 0:00:11.6]} 17.
Nd5 {[%clk 0:00:45.4]} 17... Bb7 {[%clk 0:00:08.2]} 18. Rc1 {[%clk 0:00:39.3]}
18... Rac8 {[%clk 0:00:05]} 19. Bf5 {[%clk 0:00:32.9]} 19... a5 {[%clk
0:00:03.5]} 20. Bh4 {[%clk 0:00:30.3]} 20... Qd6 {[%clk 0:00:01.9]} 21. Nxf6+
{[%clk 0:00:25.9]} 21... Nxf6 {[%clk 0:00:02.7]} 22. Bxc8 {[%clk 0:00:25.4]}
22... Bxc8 {[%clk 0:00:02.4]} 23. Qxd6 {[%clk 0:00:24.6]} 23... Bxd6 {[%clk
0:00:03.3]} 24. Bg3 {[%clk 0:00:23.1]} 1-0

[Event "*** SCC Grand Prix: Titled Tuesday Blitz"]
[Site "Chess.com"]
[Date "2020.07.14"]
[Round "1"]
[White "AGW2016"]
[Black "Chess_Boxer123"]
[Result "1/2-1/2"]
[WhiteElo "2265"]
[BlackElo "2567"]
[TimeControl "180+1"]
[EndTime "10:06:43 PDT"]
[Termination "Game drawn by agreement"]

1. e4 {[%clk 0:03:00.9]} 1... c5 {[%clk 0:02:59.9]} 2. c3 {[%clk 0:03:00.7]}
2... Nf6 {[%clk 0:02:58.2]} 3. e5 {[%clk 0:02:58.3]} 3... Nd5 {[%clk 0:02:56.1]}
4. Nf3 {[%clk 0:02:58.8]} 4... Nc6 {[%clk 0:02:55.6]} 5. Bc4 {[%clk 0:02:56.1]}
5... Nb6 {[%clk 0:02:54]} 6. Bb3 {[%clk 0:02:54.8]} 6... d5 {[%clk 0:02:53.4]}
7. d4 {[%clk 0:02:46.9]} 7... cxd4 {[%clk 0:02:53.1]} 8. cxd4 {[%clk 0:02:45.6]}
8... Bg4 {[%clk 0:02:53.2]} 9. Be3 {[%clk 0:02:44.5]} 9... e6 {[%clk 0:02:52.8]}
10. h3 {[%clk 0:02:42.4]} 10... Bb4+ {[%clk 0:02:47.4]} 11. Nc3 {[%clk
0:02:39.7]} 11... Bh5 {[%clk 0:02:41.8]} 12. O-O {[%clk 0:02:38.7]} 12... O-O
{[%clk 0:02:35.1]} 13. a3 {[%clk 0:02:38.2]} 13... Bxc3 {[%clk 0:02:34.5]} 14.
bxc3 {[%clk 0:02:37.8]} 14... Na5 {[%clk 0:02:34.3]} 15. Bc2 {[%clk 0:02:34.4]}
15... Bg6 {[%clk 0:02:33.4]} 16. Rb1 {[%clk 0:02:21.4]} 16... Nbc4 {[%clk
0:02:21.2]} 17. Bxg6 {[%clk 0:02:20]} 17... fxg6 {[%clk 0:02:15.3]} 18. a4
{[%clk 0:02:15.8]} 18... Nxe3 {[%clk 0:02:13.1]} 19. fxe3 {[%clk 0:02:15.4]}
19... Nc4 {[%clk 0:02:09.5]} 20. Qd3 {[%clk 0:02:12]} 20... Qd7 {[%clk
0:01:58.9]} 21. e4 {[%clk 0:02:08.2]} 21... Rac8 {[%clk 0:01:56.5]} 22. exd5
{[%clk 0:02:04.4]} 22... Qxd5 {[%clk 0:01:56.3]} 23. Nd2 {[%clk 0:01:59.3]}
23... Nxd2 {[%clk 0:01:54.5]} 24. Qxd2 {[%clk 0:01:58.9]} 24... b6 {[%clk
0:01:50.8]} 25. Qd3 {[%clk 0:01:56]} 25... Rf5 {[%clk 0:01:38.3]} 26. g4 {[%clk
0:01:34.6]} 26... Rff8 {[%clk 0:01:32.8]} 27. Rxf8+ {[%clk 0:01:29.9]} 27...
Rxf8 {[%clk 0:01:31.4]} 28. c4 {[%clk 0:01:30.2]} 28... Qf3 {[%clk 0:01:18.1]}
29. Qxf3 {[%clk 0:01:29.3]} 29... Rxf3 {[%clk 0:01:19]} 30. a5 {[%clk
0:01:26.7]} 30... Rxh3 {[%clk 0:01:00.6]} 31. axb6 {[%clk 0:01:25.3]} 31... axb6
{[%clk 0:01:01.5]} 32. Rxb6 {[%clk 0:01:25.8]} 32... Rg3+ {[%clk 0:01:00]} 33.
Kf2 {[%clk 0:01:25.4]} 33... Rxg4 {[%clk 0:01:00.9]} 34. Ke3 {[%clk 0:01:23.1]}
34... Rg3+ {[%clk 0:00:57.9]} 35. Kf4 {[%clk 0:01:22.2]} 35... Rc3 {[%clk
0:00:57.1]} 36. c5 {[%clk 0:01:21.7]} 36... Kf7 {[%clk 0:00:47]} 37. Rb7+ {[%clk
0:01:16.2]} 37... Kf8 {[%clk 0:00:46.9]} 38. Ke4 {[%clk 0:01:13.1]} 38... g5
{[%clk 0:00:43.8]} 39. Rb6 {[%clk 0:00:47.5]} 39... Kf7 {[%clk 0:00:39.7]} 40.
Rb7+ {[%clk 0:00:47.3]} 40... Kg6 {[%clk 0:00:35.4]} 41. Rb6 {[%clk 0:00:47.1]}
41... Kf7 {[%clk 0:00:35.1]} 42. Rb7+ {[%clk 0:00:47]} 1/2-1/2